fUST/lending_fUST_20241108
["ID","MTS","AMOUNT","RATE_DAILY","PERIOD"]
[341656094,1731067625768,-500.0,0.00021917,2]
[341656095,1731067625791,-587.65,0.00021917,2]
[341656096,1731067625817,-500.0,0.00021917,2]
[341656097,1731067625838,-510.42369737,0.00021917,2]
[341656098,1731067625858,-500.0,0.00021917,2]
[341656099,1731067625879,-500.0,0.00021917,2]
[341656100,1731067625900,-500.0,0.00021917,2]
[341656101,1731067625920,-500.0,0.00021917,2]
[341656102,1731067625941,-500.0,0.00021917,2]
[341656103,1731067625963,-500.0,0.00021917,2]
[341656104,1731067625985,-500.0,0.00021917,2]
[341656105,1731067626006,-500.0,0.00021917,2]
[341656106,1731067626027,-506.11243307,0.00021917,2]
[341656107,1731067626047,-500.0,0.00021917,2]
[341656108,1731067626068,-500.0,0.00021917,2]
[341656109,1731067626087,-500.0,0.00021917,2]
[341656110,1731067626108,-500.0,0.00021917,2]
[341656111,1731067626128,-393.60869827,0.00021917,2]
[341656112,1731067626148,-500.0,0.00021917,2]
[341656113,1731067626169,-500.0,0.00021917,2]
[341656114,1731067626189,-500.0,0.00021917,2]
[341656115,1731067626210,-500.0,0.00021917,2]
[341656116,1731067626231,-500.0,0.00021917,2]
[341656117,1731067626252,-495.42779697,0.00021917,2]
[341656118,1731067626274,-500.0,0.00021917,2]
[341656119,1731067626295,-500.0,0.00021917,2]
[341656120,1731067626319,-2630.73,0.00021917,2]
[341656121,1731067626341,-500.0,0.00021917,2]
[341656122,1731067626361,-500.0,0.00021917,2]
[341656123,1731067626382,-500.0,0.00021917,2]
[341656124,1731067626405,-715.59,0.00021917,2]
[341656125,1731067626426,-500.0,0.00021917,2]
[341656126,1731067626446,-500.0,0.00021917,2]
[341656127,1731067626466,-500.0,0.00021917,2]
[341656128,1731067626485,-500.0,0.00021917,2]
[341656129,1731067626505,-500.0,0.00021917,2]
[341656130,1731067626526,-500.0,0.00021917,2]
[341656131,1731067626548,-5205.1,0.00021917,2]
[341656132,1731067626570,-1262.92,0.00021917,2]
[341656133,1731067626590,-500.0,0.00021917,2]
[341656134,1731067626610,-500.0,0.00021917,2]
[341656135,1731067626631,-1730.83,0.00021917,2]
[341656136,1731067626650,-500.0,0.00021917,2]
[341656137,1731067626670,-500.0,0.00021917,2]
[341656138,1731067626690,-500.0,0.00021917,2]
[341656139,1731067626717,-6236.75,0.00021917,2]
[341656140,1731067626738,-500.0,0.00021917,2]
[341656141,1731067626760,-500.0,0.00021917,2]
[341656142,1731067626781,-242.3951252,0.00021917,2]
[341656143,1731067626802,-500.0,0.00021917,2]
[341656144,1731067626823,-509.3,0.00021917,2]
[341656145,1731067626844,-500.0,0.00021917,2]
[341656146,1731067626864,-500.0,0.00021917,2]
[341656147,1731067626885,-500.0,0.00021917,2]
[341656148,1731067626909,-1193.48,0.00021917,2]
[341656149,1731067626929,-500.0,0.00021917,2]
[341656150,1731067626950,-500.0,0.00021917,2]
[341656151,1731067626970,-500.0,0.00021917,2]
[341656152,1731067626991,-500.0,0.00021917,2]
[341656153,1731067627012,-500.0,0.00021917,2]
[341656154,1731067627032,-500.0,0.00021917,2]
[341656155,1731067627054,-500.0,0.00021917,2]
[341656156,1731067627074,-500.0,0.00021917,2]
[341656157,1731067627094,-500.0,0.00021917,2]
[341656158,1731067627114,-569.36,0.00021917,2]
[341656159,1731067627135,-500.0,0.00021917,2]
[341656160,1731067627155,-500.0,0.00021917,2]
[341656161,1731067627176,-500.0,0.00021917,2]
[341656162,1731067627196,-500.0,0.00021917,2]
[341656163,1731067627218,-500.0,0.00021917,2]
[341656164,1731067627238,-500.0,0.00021917,2]
[341656165,1731067627261,-284.36439111,0.00021917,2]
[341656166,1731067627281,-500.0,0.00021917,2]
[341656167,1731067627305,-500.0,0.00021917,2]
[341656168,1731067627328,-500.0,0.00021917,2]
[341656169,1731067627348,-184.596246,0.00021918,2]
[341656170,1731067627369,-353.0,0.00022,2]
[341656171,1731067627391,-164.0,0.00022,2]
[341656172,1731067627412,-622.34,0.00022181,3]
[341656173,1731067627431,-500.0,0.0002219,2]
[341656174,1731067627453,-592.75,0.00022191,2]
[341656175,1731067627474,-223.0760377,0.00022191,2]
[341656176,1731067627494,-500.0,0.00022191,2]
[341656177,1731067627515,-500.0,0.00022191,2]
[341656178,1731067627538,-587.65,0.00022191,2]
[341656179,1731067627560,-500.0,0.00022191,2]
[341656180,1731067627580,-500.0,0.00022191,2]
[341656181,1731067627600,-500.0,0.00022191,2]
[341656182,1731067627621,-500.0,0.00022191,2]
[341656183,1731067627641,-640.4776018,0.00022191,2]
[341656184,1731067627661,-500.0,0.00022191,2]
[341656185,1731067627681,-500.0,0.00022191,2]
[341656186,1731067627710,-500.0,0.00022191,2]
[341656187,1731067627730,-521.19161642,0.00022191,2]
[341656188,1731067627754,-487.70654853,0.00022191,2]
[341656189,1731067627779,-500.0,0.00022191,2]
[341656190,1731067627804,-2630.73,0.00022191,2]
[341656191,1731067627825,-500.0,0.00022191,2]
[341656192,1731067627846,-500.0,0.00022191,2]
[341656193,1731067627869,-715.59,0.00022191,2]
[341656194,1731067627889,-500.0,0.00022191,2]
[341656195,1731067627910,-5205.1,0.00022191,2]
[341656196,1731067627932,-1262.92,0.00022191,2]
[341656197,1731067627952,-500.0,0.00022191,2]
[341656198,1731067627973,-1730.83,0.00022191,2]
[341656199,1731067627994,-6236.75,0.00022191,2]
[341656200,1731067628014,-509.3,0.00022191,2]
[341656201,1731067628035,-1193.48,0.00022191,2]
[341656202,1731067628057,-500.0,0.00022191,2]
[341656203,1731067628077,-500.0,0.00022191,2]
[341656204,1731067628097,-500.0,0.00022191,2]
[341656205,1731067628249,-500.0,0.00022191,2]
[341656206,1731067628271,-500.0,0.00022191,2]
[341656207,1731067628293,-500.0,0.00022191,2]
[341656208,1731067628315,-569.36,0.00022191,2]
[341656209,1731067628336,-500.0,0.00022191,2]
[341656210,1731067628357,-500.0,0.00022191,2]
[341656211,1731067628378,-300.29,0.00022191,2]
[341656212,1731067628399,-500.0,0.00022191,2]
[341656213,1731067628418,-353.0,0.00022192,2]
[341656214,1731067628438,-226.666666,0.00022242,2]
[341656215,1731067628457,-765.61153661,0.00022365,2]
[341656216,1731067628478,-500.0,0.00022463,2]
[341656217,1731067628498,-500.0,0.00022463,2]
[341656218,1731067628520,-598.46021264,0.00022463,2]
[341656219,1731067628543,-500.0,0.00022463,2]
[341656220,1731067628566,-500.0,0.00022463,2]
[341656221,1731067628588,-500.0,0.00022463,2]
[341656222,1731067628609,-500.0,0.00022463,2]
[341656223,1731067628635,-296.3745783,0.00022463,2]
[341656224,1731067642154,-500.0,0.00021917,2]
[341656225,1731067642180,-500.0,0.00021917,2]
[341656226,1731067642201,-500.0,0.00021917,2]
[341656227,1731067642224,-500.0,0.00021917,2]
[341656228,1731067642247,-500.0,0.00021917,2]
[341656229,1731067642271,-2531.09,0.00021917,2]
[341656230,1731067642293,-2531.09,0.00022191,2]
[341656231,1731067642315,-203.6254217,0.00022463,2]
[341656232,1731067642338,-500.0,0.00022463,2]
[341656233,1731067642359,-500.0,0.00022463,2]
[341656234,1731067642381,-409.79903653,0.00022463,2]
[341656235,1731067642403,-500.0,0.00022463,2]
[341656236,1731067642425,-500.0,0.00022463,2]
[341656237,1731067642445,-500.0,0.00022464,2]
[341656238,1731067642465,-500.0,0.00022464,2]
[341656239,1731067642485,-592.75,0.00022465,2]
[341656240,1731067642505,-500.0,0.00022465,2]
[341656241,1731067642526,-500.0,0.00022465,2]
[341656242,1731067642547,-587.65,0.00022465,2]
[341656243,1731067642570,-500.0,0.00022465,2]
[341656244,1731067642591,-287.30540183,0.00022465,2]
[341656245,1731067642612,-286.6,0.00022465,2]
[341656246,1731067642632,-500.0,0.00022465,2]
[341656247,1731067642653,-500.0,0.00022465,2]
[341656248,1731067642673,-500.0,0.00022465,2]
[341656249,1731067642695,-715.59,0.00022465,2]
[341656250,1731067642723,-5205.1,0.00022465,2]
[341656251,1731067642747,-1262.92,0.00022465,2]
[341656252,1731067642767,-1730.83,0.00022465,2]
[341656253,1731067642792,-6236.75,0.00022465,2]
[341656254,1731067642817,-509.3,0.00022465,2]
[341656255,1731067642838,-1193.48,0.00022465,2]
[341656256,1731067642859,-500.0,0.00022465,2]
[341656257,1731067642880,-500.0,0.00022465,2]
[341656258,1731067642901,-500.0,0.00022465,2]
[341656259,1731067642923,-500.0,0.00022465,2]
[341656260,1731067642944,-569.36,0.00022465,2]
[341656261,1731067642965,-500.0,0.00022465,2]
[341656262,1731067642986,-500.0,0.00022465,2]
[341656263,1731067643006,-500.0,0.00022465,2]
[341656264,1731067643028,-2531.09,0.00022465,2]
[341656265,1731067643049,-500.0,0.00022519,2]
[341656266,1731067643071,-184.596246,0.00022559,2]
[341656267,1731067643092,-465.92813971,0.00022607,2]
[341656268,1731067643112,-500.0,0.00022738,2]
[341656269,1731067643133,-592.75,0.00022739,2]
[341656270,1731067643155,-500.0,0.00022739,2]
[341656271,1731067643177,-500.0,0.00022739,2]
[341656272,1731067643197,-587.65,0.00022739,2]
[341656273,1731067643217,-500.0,0.00022739,2]
[341656274,1731067643323,-246.37244556,0.00022739,2]
[341656275,1731067643367,-500.0,0.00022739,2]
[341656276,1731067643388,-151.0,0.00022739,7]
[341656277,1731067643409,-151.0,0.00022739,7]
[341656278,1731067643429,-151.0,0.00022739,7]
[341656279,1731067643450,-151.0,0.00022739,7]
[341656280,1731067643471,-500.0,0.00022739,2]
[341656281,1731067643495,-715.59,0.00022739,2]
[341656282,1731067643517,-161.831511,0.00022739,7]
[341656283,1731067643539,-161.831511,0.00022739,7]
[341656284,1731067643560,-189.681741,0.00022739,7]
[341656285,1731067643582,-189.681741,0.00022739,7]
[341656286,1731067643603,-5205.1,0.00022739,2]
[341656287,1731067643625,-1262.92,0.00022739,2]
[341656288,1731067643645,-151.0,0.00022739,7]
[341656289,1731067643666,-171.195646,0.00022739,7]
[341656290,1731067643687,-171.195646,0.00022739,7]
[341656291,1731067643709,-1730.83,0.00022739,2]
[341656292,1731067643733,-263.121962,0.00022739,7]
[341656293,1731067643756,-6236.75,0.00022739,2]
[341656294,1731067643776,-263.121962,0.00022739,7]
[341656295,1731067643798,-523.397869,0.00022739,7]
[341656296,1731067643820,-523.397869,0.00022739,7]
[341656297,1731067643842,-151.0,0.00022739,7]
[341656298,1731067643864,-509.3,0.00022739,2]
[341656299,1731067643887,-1193.48,0.00022739,2]
[341656300,1731067643908,-500.0,0.00022739,2]
[341656301,1731067643929,-500.0,0.00022739,2]
[341656302,1731067643949,-500.0,0.00022739,2]
[341656303,1731067643972,-192.038808,0.00022739,7]
[341656304,1731067643994,-500.0,0.00022739,2]
[341656305,1731067644014,-750.444699,0.00022739,7]
[341656306,1731067644035,-151.0,0.00022739,7]
[341656307,1731067644056,-569.36,0.00022739,2]
[341656308,1731067644078,-750.444699,0.00022739,7]
[341656309,1731067644099,-500.0,0.00022739,2]
[341656310,1731067644120,-306.186877,0.00022739,7]
[341656311,1731067644141,-306.186877,0.00022739,7]
[341656312,1731067644163,-151.0,0.00022739,7]
[341656313,1731067644185,-151.0,0.00022739,7]
[341656314,1731067644207,-500.0,0.00022739,2]
[341656315,1731067644228,-580.43925,0.00022739,7]
[341656316,1731067644249,-580.43925,0.00022739,7]
[341656317,1731067644271,-234.67,0.00022739,2]
[341656318,1731067644293,-151.0,0.00022739,7]
[341656319,1731067644314,-151.0,0.00022739,7]
[341656320,1731067644340,-2531.09,0.00022739,2]
[341656321,1731067644360,-765.61153661,0.00022913,2]
[341656322,1731067644384,-385.41117655,0.00023012,2]
[341656323,1731067644405,-592.75,0.00023013,2]
[341656324,1731067644426,-500.0,0.00023013,2]
[341656325,1731067644447,-500.0,0.00023013,2]
[341656326,1731067644468,-587.65,0.00023013,2]
[341656327,1731067644487,-500.0,0.00023013,2]
[341656328,1731067644507,-151.0,0.00023013,7]
[341656329,1731067644527,-151.0,0.00023013,7]
[341656330,1731067644549,-151.0,0.00023013,7]
[341656331,1731067644571,-248.293301,0.00023013,7]
[341656332,1731067644591,-248.293301,0.00023013,7]
[341656333,1731067644612,-500.0,0.00023013,2]
[341656334,1731067644633,-500.0,0.00023013,2]
[341656335,1731067644661,-715.59,0.00023013,2]
[341656336,1731067644682,-5205.1,0.00023013,2]
[341656337,1731067644707,-1262.92,0.00023013,2]
[341656338,1731067644731,-1730.83,0.00023013,2]
[341656339,1731067644755,-6236.75,0.00023013,2]
[341656340,1731067644777,-509.3,0.00023013,2]
[341656341,1731067644799,-1193.48,0.00023013,2]
[341656342,1731067644821,-500.0,0.00023013,2]
[341656343,1731067644841,-500.0,0.00023013,2]
[341656344,1731067644862,-500.0,0.00023013,2]
[341656345,1731067644885,-500.0,0.00023013,2]
[341656346,1731067644909,-750.444699,0.00023013,7]
[341656347,1731067644932,-151.0,0.00023013,7]
[341656348,1731067644953,-569.36,0.00023013,2]
[341656349,1731067644975,-750.444699,0.00023013,7]
[341656350,1731067644996,-306.186877,0.00023013,7]
[341656351,1731067645019,-306.186877,0.00023013,7]
[341656352,1731067645040,-151.0,0.00023013,7]
[341656353,1731067645064,-151.0,0.00023013,7]
[341656354,1731067645091,-500.0,0.00023013,2]
[341656355,1731067645113,-580.43925,0.00023013,7]
[341656356,1731067645134,-580.43925,0.00023013,7]
[341656357,1731067645155,-151.0,0.00023013,7]
[341656358,1731067645176,-151.0,0.00023013,7]
[341656359,1731067645198,-2531.09,0.00023013,2]
[341656360,1731067645219,-353.0,0.00023014,2]
[341656361,1731067645239,-500.0,0.00023094,2]
[341656362,1731067645258,-184.596246,0.000232,2]
[341656363,1731067645277,-587.9711289,0.00023286,2]
[341656364,1731067645299,-327.8165753,0.00023286,2]
[341656365,1731067645321,-592.75,0.00023287,2]
[341656366,1731067645344,-500.0,0.00023287,2]
[341656367,1731067645366,-500.0,0.00023287,2]
[341656368,1731067645386,-587.65,0.00023287,2]
[341656369,1731067645410,-590.60745123,0.00023287,2]
[341656370,1731067645431,-151.0,0.00023287,7]
[341656371,1731067645452,-151.0,0.00023287,7]
[341656372,1731067645475,-248.293301,0.00023287,7]
[341656373,1731067645495,-248.293301,0.00023287,7]
[341656374,1731067645517,-500.0,0.00023287,2]
[341656375,1731067645542,-151.0,0.00023287,7]
[341656376,1731067645564,-151.0,0.00023287,7]
[341656377,1731067645589,-151.0,0.00023287,7]
[341656378,1731067645609,-179.946279,0.00023287,7]
[341656379,1731067645629,-500.0,0.00023287,2]
[341656380,1731067645651,-715.59,0.00023287,2]
[341656381,1731067645672,-161.831511,0.00023287,7]
[341656382,1731067645694,-161.831511,0.00023287,7]
[341656383,1731067645717,-189.681741,0.00023287,7]
[341656384,1731067645738,-189.681741,0.00023287,7]
[341656385,1731067645759,-5205.1,0.00023287,2]
[341656386,1731067645795,-1262.92,0.00023287,2]
[341656387,1731067645821,-151.0,0.00023287,7]
[341656388,1731067645843,-171.195646,0.00023287,7]
[341656389,1731067645864,-171.195646,0.00023287,7]
[341656390,1731067645887,-1730.83,0.00023287,2]
[341656391,1731067645909,-263.121962,0.00023287,7]
[341656392,1731067645931,-6236.75,0.00023287,2]
[341656393,1731067645954,-263.121962,0.00023287,7]
[341656394,1731067645976,-523.397869,0.00023287,7]
[341656395,1731067645998,-523.397869,0.00023287,7]
[341656396,1731067646023,-509.3,0.00023287,2]
[341656397,1731067646046,-1193.48,0.00023287,2]
[341656398,1731067646068,-500.0,0.00023287,2]
[341656399,1731067646090,-500.0,0.00023287,2]
[341656400,1731067646248,-500.0,0.00023287,2]
[341656401,1731067646272,-500.0,0.00023287,2]
[341656402,1731067646294,-750.444699,0.00023287,7]
[341656403,1731067646315,-151.0,0.00023287,7]
[341656404,1731067646341,-569.36,0.00023287,2]
[341656405,1731067646362,-750.444699,0.00023287,7]
[341656406,1731067646384,-306.186877,0.00023287,7]
[341656407,1731067646405,-306.186877,0.00023287,7]
[341656408,1731067646430,-151.0,0.00023287,7]
[341656409,1731067646451,-151.0,0.00023287,7]
[341656410,1731067646471,-500.0,0.00023287,2]
[341656411,1731067646493,-580.43925,0.00023287,7]
[341656412,1731067646513,-580.43925,0.00023287,7]
[341656413,1731067646534,-151.0,0.00023287,7]
[341656414,1731067646556,-220.148521,0.00023287,7]
[341656415,1731067646580,-2531.09,0.00023287,2]
[341656416,1731067646601,-303.75538598,0.00023447,2]
[341656417,1731067646622,-155.2323931,0.00023479,2]
[341656418,1731067646644,-153.0,0.00023479,2]
[341656419,1731067646666,-592.75,0.00023561,2]
[341656420,1731067646687,-395.95,0.00023561,2]
[341656421,1731067646714,-500.0,0.00023561,2]
[341656422,1731067646734,-587.65,0.00023561,2]
[341656423,1731067646756,-151.0,0.00023561,7]
[341656424,1731067646777,-248.293301,0.00023561,7]
[341656425,1731067646801,-248.293301,0.00023561,7]
[341656426,1731067646825,-500.0,0.00023561,2]
[341656427,1731067646847,-151.0,0.00023561,7]
[341656428,1731067646869,-151.0,0.00023561,7]
[341656429,1731067646890,-151.0,0.00023561,7]
[341656430,1731067646913,-500.0,0.00023561,2]
[341656431,1731067646937,-715.59,0.00023561,2]
[341656432,1731067646958,-161.831511,0.00023561,7]
[341656433,1731067646980,-161.831511,0.00023561,7]
[341656434,1731067647001,-189.681741,0.00023561,7]
[341656435,1731067647022,-189.681741,0.00023561,7]
[341656436,1731067647045,-5205.1,0.00023561,2]
[341656437,1731067647066,-1262.92,0.00023561,2]
[341656438,1731067647091,-250.938938,0.00023561,7]
[341656439,1731067647113,-171.195646,0.00023561,7]
[341656440,1731067647134,-171.195646,0.00023561,7]
[341656441,1731067647156,-1730.83,0.00023561,2]
[341656442,1731067647177,-263.121962,0.00023561,7]
[341656443,1731067647199,-6236.75,0.00023561,2]
[341656444,1731067647221,-263.121962,0.00023561,7]
[341656445,1731067647242,-523.397869,0.00023561,7]
[341656446,1731067647265,-523.397869,0.00023561,7]
[341656447,1731067647287,-509.3,0.00023561,2]
[341656448,1731067647309,-1193.48,0.00023561,2]
[341656449,1731067647331,-500.0,0.00023561,2]
[341656450,1731067647352,-500.0,0.00023561,2]
[341656451,1731067647373,-500.0,0.00023561,2]
[341656452,1731067647396,-500.0,0.00023561,2]
[341656453,1731067647421,-750.444699,0.00023561,7]
[341656454,1731067647442,-569.36,0.00023561,2]
[341656455,1731067647464,-750.444699,0.00023561,7]
[341656456,1731067647485,-306.186877,0.00023561,7]
[341656457,1731067647509,-306.186877,0.00023561,7]
[341656458,1731067647533,-151.0,0.00023561,7]
[341656459,1731067647554,-151.0,0.00023561,7]
[341656460,1731067647577,-500.0,0.00023561,2]
[341656461,1731067647602,-580.43925,0.00023561,7]
[341656462,1731067647623,-580.43925,0.00023561,7]
[341656463,1731067647644,-151.0,0.00023561,7]
[341656464,1731067647670,-2531.09,0.00023561,2]
[341656465,1731067647689,-554.624,0.00023621,2]
[341656466,1731067647709,-1915.308594,0.000237,2]
[341656467,1731067647734,-4258.46096147,0.00023707,2]
[341656468,1731067647755,-151.0,0.00023707,7]
[341656469,1731067647775,-295.750208,0.00023707,7]
[341656470,1731067647796,-420.0,0.00023817,2]
[341656471,1731067647818,-592.75,0.00023835,2]
[341656472,1731067647839,-500.0,0.00023835,2]
[341656473,1731067647860,-587.65,0.00023835,2]
[341656474,1731067647883,-500.0,0.00023835,2]
[341656475,1731067647905,-500.0,0.00023835,2]
[341656476,1731067647927,-715.59,0.00023835,2]
[341656477,1731067647948,-5205.1,0.00023835,2]
[341656478,1731067647970,-1262.92,0.00023835,2]
[341656479,1731067647991,-171.195646,0.00023835,7]
[341656480,1731067648014,-171.195646,0.00023835,7]
[341656481,1731067648037,-1730.83,0.00023835,2]
[341656482,1731067648059,-263.121962,0.00023835,7]
[341656483,1731067648081,-6236.75,0.00023835,2]
[341656484,1731067648103,-263.121962,0.00023835,7]
[341656485,1731067648125,-509.3,0.00023835,2]
[341656486,1731067648148,-1193.48,0.00023835,2]
[341656487,1731067648169,-500.0,0.00023835,2]
[341656488,1731067648191,-500.0,0.00023835,2]
[341656489,1731067648212,-500.0,0.00023835,2]
[341656490,1731067648234,-500.0,0.00023835,2]
[341656491,1731067648256,-569.36,0.00023835,2]
[341656492,1731067648277,-500.0,0.00023835,2]
[341656493,1731067648300,-2531.09,0.00023835,2]
[341656494,1731067648320,-184.596246,0.00023841,2]
[341656495,1731067648341,-150.0,0.00023887,2]
[341656496,1731067648362,-706.579,0.00023887,2]
[341656497,1731067648382,-540.475,0.00023887,2]
[341656498,1731067648405,-151.0,0.00023887,7]
[341656499,1731067648426,-151.0,0.00023887,7]
[341656500,1731067648448,-151.0,0.00023887,7]
[341656501,1731067648470,-161.831511,0.00023887,7]
[341656502,1731067648490,-161.831511,0.00023887,7]
[341656503,1731067648511,-189.681741,0.00023887,7]
[341656504,1731067648533,-189.681741,0.00023887,7]
[341656505,1731067648555,-523.397869,0.00023887,7]
[341656506,1731067648577,-523.397869,0.00023887,7]
[341656507,1731067648598,-750.444699,0.00023887,7]
[341656508,1731067648618,-750.444699,0.00023887,7]
[341656509,1731067648639,-306.186877,0.00023887,7]
[341656510,1731067648660,-306.186877,0.00023887,7]
[341656511,1731067648681,-151.0,0.00023887,7]
[341656512,1731067648705,-151.0,0.00023887,7]
[341656513,1731067648727,-580.43925,0.00023887,7]
[341656514,1731067648749,-580.43925,0.00023887,7]
[341656515,1731067648768,-1000.0,0.00023887,7]
[341656516,1731067648792,-1000.0,0.00023887,7]
[341656517,1731067648813,-1000.0,0.00023887,7]
[341656518,1731067648837,-1000.0,0.00023887,7]
[341656519,1731067648857,-1000.0,0.00023887,7]
[341656520,1731067649010,-1000.0,0.00023887,7]
[341656521,1731067649033,-1000.0,0.00023887,7]
[341656522,1731067649056,-1000.0,0.00023887,7]
[341656523,1731067649081,-1000.0,0.00023887,7]
[341656524,1731067649104,-1000.0,0.00023887,7]
[341656525,1731067649126,-1000.0,0.00023887,7]
[341656526,1731067649147,-1000.0,0.00023887,7]
[341656527,1731067649169,-1000.0,0.00023887,7]
[341656528,1731067649189,-1000.0,0.00023887,7]
[341656529,1731067649211,-1000.0,0.00023887,7]
[341656530,1731067649231,-1000.0,0.00023887,7]
[341656531,1731067649252,-1000.0,0.00023887,7]
[341656532,1731067649273,-1000.0,0.00023887,7]
[341656533,1731067649294,-1000.0,0.00023887,7]
[341656534,1731067649315,-1000.0,0.00023887,7]
[341656535,1731067649340,-1000.0,0.00023887,7]
[341656536,1731067649361,-1000.0,0.00023887,7]
[341656537,1731067649382,-1000.0,0.00023887,7]
[341656538,1731067649402,-1000.0,0.00023887,7]
[341656539,1731067649423,-1000.0,0.00023887,7]
[341656540,1731067649444,-1000.0,0.00023887,7]
[341656541,1731067649464,-1000.0,0.00023887,7]
[341656542,1731067649485,-1000.0,0.00023887,7]
[341656543,1731067649506,-1000.0,0.00023887,7]
[341656544,1731067649529,-1000.0,0.00023887,7]
[341656545,1731067649551,-1000.0,0.00023887,7]
[341656546,1731067649574,-1000.0,0.00023887,7]
[341656547,1731067649595,-1000.0,0.00023887,7]
[341656548,1731067649617,-1000.0,0.00023887,7]
[341656549,1731067649638,-1000.0,0.00023887,7]
[341656550,1731067649658,-1000.0,0.00023887,7]
[341656551,1731067649679,-1013.10902851,0.00023887,7]
[341656552,1731067649700,-151.0,0.00023887,7]
[341656553,1731067649723,-1000.0,0.00023889,2]
[341656554,1731067649745,-150.112233,0.000239,10]
[341656555,1731067649768,-301.749,0.00023969,5]
[341656556,1731067649788,-71930.15305902,0.000241,2]
[341656557,1731067649896,-18245.321118,0.000241,2]
[341656673,1731067832944,-300.5032,0.00021047,2]
[341656764,1731067839635,-393.94124444,0.00021047,2]
[341656766,1731067839644,-300.0,0.00021916,2]
[341656768,1731067839654,-300.0,0.00021916,2]
[341656770,1731067839663,-324.40875556,0.00021917,2]
[341656772,1731067839676,-175.59124444,0.00021917,2]
[341656774,1731067839685,-500.0,0.00021917,2]
[341656776,1731067839695,-500.0,0.00021917,2]
[341656778,1731067839705,-212.89393205,0.00021917,2]
[341656780,1731067839715,-500.0,0.00021917,2]
[341656782,1731067839724,-500.0,0.00021917,2]
[341656784,1731067839733,-500.0,0.00021917,2]
[341656787,1731067839742,-4157.84,0.00021917,2]
[341656789,1731067839751,-500.0,0.00021917,2]
[341656792,1731067839760,-526.89,0.00021917,2]
[341656795,1731067839770,-500.0,0.00021917,2]
[341656797,1731067839783,-500.0,0.00021917,2]
[341656799,1731067839793,-500.0,0.00021917,2]
[341656801,1731067839802,-501.14428624,0.00021917,2]
[341656803,1731067839811,-3706.66,0.00021917,2]
[341656805,1731067839821,-500.0,0.00021917,2]
[341656807,1731067839830,-500.0,0.00021917,2]
[341656809,1731067839840,-500.0,0.00021917,2]
[341656811,1731067839852,-500.0,0.00021917,2]
[341656815,1731067839862,-350.45566383,0.00021917,2]
[341656817,1731067839871,-500.0,0.00021917,2]
[341656820,1731067839881,-1229.1,0.00021917,2]
[341656822,1731067839890,-500.0,0.00021917,2]
[341656823,1731067839899,-500.0,0.00021917,2]
[341656826,1731067839908,-899.35,0.00021917,2]
[341656828,1731067839917,-500.0,0.00021917,2]
[341656830,1731067839927,-500.0,0.00021917,2]
[341656831,1731067839936,-500.0,0.00021917,2]
[341656832,1731067839945,-500.0,0.00021917,2]
[341656833,1731067839955,-500.0,0.00021917,2]
[341656834,1731067839965,-500.0,0.00021917,2]